lending/lending_fUSD_20241228
["ID","MTS","AMOUNT","RATE_DAILY","PERIOD"]
[346939618,1735405832550,-200.0,0.00012198,2]
[346939620,1735405832560,-352.375,0.0001235,2]
[346939622,1735405832569,-369.33,0.00012373,2]
[346939624,1735405832580,-442.68429428,0.00012439,2]
[346939626,1735405832589,-442.68429428,0.00012448,2]
[346939647,1735405832777,-442.68429428,0.00012451,2]
[346939649,1735405832787,-442.68429428,0.00012465,2]
[346939651,1735405832797,-200.0,0.00012465,2]
[346939653,1735405832807,-442.68429428,0.00012467,2]
[346939655,1735405832816,-442.68429428,0.0001247,2]
[346939657,1735405832825,-165.89,0.00012473,2]
[346939659,1735405832835,-887.32,0.00012477,2]
[346939661,1735405832844,-796.02,0.00012509,2]
[346939663,1735405832853,-520.72880365,0.00012536,2]
[346939664,1735405832862,-1000.0,0.00012548,2]
[346939666,1735405832872,-1000.0,0.000127,2]
[346939668,1735405832881,-24857.52328422,0.00012777,2]
[346939670,1735405832891,-24857.52328421,0.00012791,2]
[346939672,1735405832901,-1344.16120445,0.00012798,2]
[346939674,1735405832910,-17149.27469031,0.000128,2]
[346939676,1735405832920,-12726.8075,0.000128,2]
[346939678,1735405832934,-24857.52328421,0.00012804,2]
[346939680,1735405832944,-1344.16120444,0.00012809,2]
[346939682,1735405832953,-24857.52328421,0.00012818,2]
[346939684,1735405832963,-1344.16120444,0.00012821,2]
[346939686,1735405832973,-24857.52328421,0.00012832,2]
[346939688,1735405832983,-1344.16120444,0.00012832,2]
[346939690,1735405832992,-7500.0,0.00012843,2]
[346939692,1735405833003,-150.343,0.00012843,2]
[346939694,1735405833012,-1265.202,0.00012843,2]
[346939696,1735405833022,-2012.0,0.00012843,2]
[346939698,1735405833031,-566.099,0.00012843,2]
[346939700,1735405833041,-150.419,0.00012843,2]
[346939702,1735405833050,-633.0,0.00012843,2]
[346939704,1735405833061,-1899.0,0.00012843,2]
[346939706,1735405833070,-3772.0,0.00012843,2]
[346939708,1735405833080,-818.0,0.00012843,2]
[346939710,1735405833091,-980.636,0.00012843,2]
[346939712,1735405833100,-1256.0,0.00012843,2]
[346939714,1735405833110,-3684.0,0.00012843,2]
[346939716,1735405833120,-536.0,0.00012843,2]
[346939718,1735405833130,-3889.0,0.00012843,2]
[346939720,1735405833140,-1171.0,0.00012843,2]
[346939722,1735405833149,-172.14,0.00012843,2]
[346939724,1735405833159,-9598.0,0.00012843,2]
[346939726,1735405833168,-1344.16120444,0.00012843,2]
[346939728,1735405833178,-24857.52328421,0.00012845,2]
[346939730,1735405833188,-1344.16120444,0.00012855,2]
[346939732,1735405833198,-24857.52328421,0.00012859,2]
[346939733,1735405833207,-1344.16120444,0.00012866,2]
[346939734,1735405833216,-14979.0,0.0001287,2]
[346939736,1735405833225,-3000.0,0.0001287,2]
[346939738,1735405833235,-291.41415434,0.00012872,2]
[346939740,1735405833244,-24857.52328421,0.00012873,2]
[346939742,1735405833254,-1344.16120444,0.00012877,2]
[346939744,1735405833265,-24857.52328421,0.00012886,2]
[346939747,1735405833276,-1344.16120444,0.00012889,2]
[346939749,1735405833286,-1920.323,0.00012898,2]
[346939751,1735405833296,-170.761,0.00012898,2]
[346939752,1735405833306,-168.8545,0.000129,2]
[346939754,1735405833317,-4324.2519,0.000129,2]
[346939756,1735405833327,-6187.99,0.000129,2]
[346939758,1735405833337,-109295.11264286,0.000129,2]
[346939760,1735405833346,-259.19322953,0.000129,2]
[346939762,1735405833356,-172.18196127,0.000129,2]
[346939764,1735405833366,-315.54080427,0.000129,2]
[346939766,1735405833376,-24857.52328421,0.000129,2]
[346939768,1735405833386,-520.72880365,0.000129,2]
[346939770,1735405833395,-1344.16120444,0.000129,2]
[346939772,1735405833404,-1002.21387631,0.000129,2]
[346939774,1735405833415,-280.11985492,0.000129,2]
[346939776,1735405833425,-1000.0,0.000129,2]
[346939778,1735405833434,-165.89,0.00012949,2]
[346939780,1735405833444,-500.0,0.00012973,2]
[346939782,1735405833453,-500.22507512,0.00012973,2]
[346939784,1735405833463,-500.0,0.00012973,2]
[346939786,1735405833472,-2000.0,0.0001299,2]
[346939788,1735405833482,-2000.0,0.00012999,2]
[346939790,1735405833491,-500.0,0.00012999,2]
[346939792,1735405833500,-1598632.03877176,0.00012999,2]
[346939794,1735405833510,-27131.41306013,0.00012999,2]
[346939796,1735405833519,-378223.6877856,0.00013,2]
[346939798,1735405833532,-6865.75023366,0.00013,2]
[346939800,1735405833543,-4764.77480111,0.00013,2]
[346939802,1735405833555,-1245.81265648,0.00013,2]
[346939804,1735405833567,-2643.39459498,0.00013,2]
[346939806,1735405833579,-342.1173432,0.00013,2]
[346939807,1735405833592,-1228.47,0.00013,2]
[346939808,1735405833604,-13653.36940426,0.00013,2]
[346939809,1735405833616,-90716.71100773,0.00013,2]
[346939810,1735405833628,-405.02194882,0.00013,2]
[346939811,1735405833639,-360.04704331,0.00013,2]
[346939816,1735405837744,-545.69999993,0.00013,2]
[346939817,1735405837799,-968.79515374,0.00013,2]
[346939818,1735405837856,-79595.84804833,0.00013,2]
[346939819,1735405837912,-302.5407008,0.00013,2]
[346939820,1735405837925,-344.1324579,0.00013,2]
[346939821,1735405838024,-9990.0,0.00013,2]
[346939822,1735405838035,-181792.56736598,0.00013,2]
[346939823,1735405838046,-99600.0,0.00013,2]
[346939995,1735405839820,-20544.95627165,0.00013,2]
[346940007,1735405839935,-799.4,0.00013,2]
[346940014,1735405839996,-574.68795249,0.00013,2]
[346940020,1735405840052,-24694.35274747,0.00013,2]
[346940023,1735405840064,-2289.6,0.00013,2]
[346940025,1735405840075,-4692.7587,0.00013,2]
[346940030,1735405840113,-3400.2452,0.00013,2]
[346940032,1735405840124,-846.45877643,0.00013,2]
[346940034,1735405840135,-5620.0,0.00013,2]
[346940038,1735405840165,-367.03000001,0.00013,2]
[346940040,1735405840176,-122452.82215825,0.00013,2]
[346940321,1735405842895,-710.80744353,0.00012899,2]
[346940322,1735405842904,-502.64255647,0.00013,2]
[346940324,1735405842916,-561.3824,0.00013,2]
[346940325,1735405842950,-865.77127835,0.00013,2]
[346940326,1735405842963,-1759.35999998,0.00013,2]
[346940327,1735405842975,-2124.4700145,0.00013,2]
[346940328,1735405842987,-2429.625,0.00013,2]
[346940329,1735405842999,-2422.0,0.00013,2]
[346940330,1735405843010,-719.32392985,0.00013,2]
[346940331,1735405843119,-378.7858017,0.00013,2]
[346940332,1735405843131,-15154.19434664,0.00013,2]
[346940360,1735405845834,-353.6915397,0.00013,2]
[346940361,1735405845847,-228008.50500201,0.00013,2]
[346940362,1735405845857,-38550.34767704,0.00013,2]
[346940363,1735405845868,-157691.03456952,0.00013,2]
[346940364,1735405845890,-569971.86135997,0.00013,2]
[346940365,1735405846054,-35354.67193278,0.00013,2]
[346940366,1735405846166,-932.26766456,0.00013,2]
[346940368,1735405846177,-549.6472086,0.00013,2]
[346940449,1735406324402,-570.0,0.00016658,30]
[346940450,1735406366633,-0.44,0.00016658,30]
[346940451,1735406366664,-999.56,0.000169,31]
[346940452,1735406415084,-919.77,0.000169,31]
[346940453,1735406415120,-1080.23,0.000169,31]
[346940454,1735406417344,-839.1,0.000169,31]
[346940455,1735406417374,-1160.9,0.000169,31]
[346940456,1735406419051,-758.43,0.000169,31]
[346940457,1735406419086,-1241.57,0.000169,31]
[346940458,1735406420457,-677.76,0.000169,31]
[346940459,1735406420487,-1322.24,0.000169,31]
[346940460,1735406430238,-597.09,0.000169,31]
[346940461,1735406430268,-413.91,0.000169,31]
[346940462,1735406467417,321.9397601,0.00022999,120]
[346940463,1735406550718,150.0,0.00022074,120]
[346940468,1735406730533,252.13369766,9e-05,2]
[346940477,1735406791190,6977.22914793,0.00023,120]
[346940494,1735406997394,483.54332006,0.00022999,120]
[346940513,1735407031989,-436.0,9.976e-05,2]
[346940516,1735407032001,-4419.0,9.976e-05,2]
[346940518,1735407032010,-810.01,9.976e-05,2]
[346940520,1735407032019,-169.27,0.00010137,2]
[346940522,1735407032028,-1000.0,0.00011131,2]
[346940523,1735407032037,-3323.9662861,0.00011396,2]
[346940524,1735407032056,-5309.39445192,0.00011396,2]
[346940525,1735407032065,-1760.92,0.00011396,2]
[346940526,1735407032075,-250.0,0.00011429,2]
[346940527,1735407032086,-172.48428742,0.00011433,2]
[346940528,1735407032315,-172.48428742,0.00011483,2]
[346940529,1735407032325,-2558.95945588,0.00011507,2]
[346940530,1735407032338,-192.04054412,0.00011507,2]
[346940531,1735407032349,-169.63508176,0.00011533,2]
[346940532,1735407032360,-351.09372189,0.00011533,2]
[346940533,1735407032369,-32.36808824,0.00011533,2]
[346940534,1735407032387,-140.11619918,0.00011533,2]
[346940535,1735407032397,-400.0,0.00011556,2]
[346940536,1735407032406,-921.15,0.00011605,2]
[346940537,1735407032415,-26109.24840691,0.00011633,2]
[346940538,1735407032427,-8672.50020958,0.00011633,2]
[346940540,1735407032446,-10980.84507428,0.00011633,2]
[346940543,1735407032464,-7052.79630923,0.00011633,2]
[346940545,1735407032473,-150.0,0.00011633,2]
[346940547,1735407032482,-300.0,0.00011633,2]
[346940549,1735407032491,-163.76,0.00011688,2]
[346940551,1735407032500,-250.0,0.0001177,2]
[346940553,1735407032509,-1100.0,0.00011972,2]
[346940555,1735407032519,-500.0,0.00011972,2]
[346940557,1735407032528,-378.81,0.00011972,2]
[346940559,1735407032537,-380.5,0.00011972,2]
[346940561,1735407032547,-376.2,0.00011972,2]
[346940563,1735407032555,-382.24,0.00011972,2]
[346940565,1735407032565,-379.16,0.00011972,2]
[346940567,1735407032574,-380.25,0.00011972,2]
[346940569,1735407032584,-382.31,0.00011972,2]
[346940571,1735407032593,-381.85,0.00011972,2]
[346940573,1735407032603,-371.77,0.00011972,2]
[346940575,1735407032613,-376.66,0.00011972,2]
[346940577,1735407032622,-376.55,0.00011972,2]
[346940579,1735407032631,-11.55525001,0.00011972,2]
[346940581,1735407032642,-356.98474999,0.00011972,2]
[346940583,1735407032651,-378.39,0.00011972,2]
[346940585,1735407032660,-376.36,0.00011972,2]
[346940587,1735407032669,-370.92,0.00011972,2]
[346940589,1735407032679,-377.43,0.00011972,2]
[346940591,1735407032688,-1363.38699849,0.0001198,2]
[346940593,1735407032699,-275.82581962,0.0001198,2]
[346940598,1735407037982,-424.16976293,0.0001198,2]
[346940599,1735407038015,-1020.48441078,0.0001198,2]
[346940600,1735407038026,-111857.88314877,0.0001198,2]
[346940601,1735407038036,-9891.62129463,0.00012112,2]
[346940602,1735407038075,-591.2369378,0.00012112,2]
[346940603,1735407038138,-494.72755185,0.00012112,2]
[346940604,1735407038149,-918.92604844,0.00012112,2]
[346940605,1735407038161,-748.0000006,0.00012112,2]
[346940606,1735407038198,-1930.39308,0.00012112,2]
[346940669,1735407040079,-3170.32655397,0.00012112,2]
[346940670,1735407040091,-1803.82920904,0.00012112,2]
[346940671,1735407040142,-2581.68,0.00012112,2]
[346940672,1735407040154,-810.97558558,0.00012112,2]
[346940673,1735407040166,-958.28373809,0.00012112,2]
[346940674,1735407040175,-495.41626191,0.00012125,2]
[346940675,1735407040202,-266.53437989,0.00012125,2]
[346940676,1735407040263,-395.78758301,0.00012125,2]
[346940677,1735407040326,-1420.97594,0.00012125,2]
[346940710,1735407043021,-1921.94753519,0.00012125,2]
[346940712,1735407043031,-1315.6084,0.00012125,2]
[346940713,1735407043041,-517.28,0.00012182,2]
[346940714,1735407043050,-810.01,0.0001224,2]
[346940715,1735407043059,-269.66303631,0.0001235,2]
[346940717,1735407043071,-89.47796369,0.0001235,2]
[346940719,1735407043080,-500.0,0.00012441,2]
[346940721,1735407043090,-293.77900495,0.000125,2]
[346940723,1735407043100,-814.59303136,0.00012522,2]
[346940724,1735407043112,-185.40696864,0.00012522,2]
[346940725,1735407043121,-1664.04,0.00012544,2]
[346940726,1735407043131,-429.15546045,0.00012654,2]
[346940727,1735407043144,-1113.0,0.000127,2]
[346940728,1735407043154,-4619.2375,0.00012705,2]
[346940729,1735407043164,-889.0799,0.00012705,2]
[346940730,1735407043173,-158.51923001,0.00012721,2]
[346940731,1735407043183,-3527.29725961,0.00012757,2]
[346940732,1735407043192,-3527.2972596,0.00012773,2]
[346940733,1735407043203,-3527.2972596,0.00012789,2]
[346940734,1735407043212,-306.72078791,0.00012804,2]
[346940735,1735407043223,-504.50149147,0.00012804,2]
[346940736,1735407043232,-500.0,0.00012804,2]
[346940737,1735407043242,-500.0,0.00012804,2]
[346940738,1735407043252,-500.0,0.00012804,2]
[346940739,1735407043266,-183.2398231,0.00012804,2]
[346940740,1735407043275,-3527.2972596,0.00012805,2]
[346940741,1735407043285,-110017.66812467,0.00012805,2]
[346940742,1735407043297,-119578.9427427,0.00012805,2]
[346940743,1735407043309,-609.856,0.00012805,2]
[346940745,1735407043320,-588.66095944,0.00012805,2]
[346940747,1735407043332,-10110.07493859,0.00012805,2]
[346940749,1735407043344,-19627.23350529,0.00012805,2]
[346940751,1735407043355,-2033.6999997,0.00012805,2]
[346940753,1735407043366,-682.65982,0.00012805,2]
[346940755,1735407043377,-789.1538285,0.00012805,2]
[346940758,1735407043388,-606.78,0.00012805,2]
[346940760,1735407043401,-3812.71169432,0.00012805,2]
[346940762,1735407043412,-919.97299999,0.00012805,2]
[346940764,1735407043423,-28137.61101591,0.00012805,2]
[346940766,1735407043435,-913.07358999,0.00012805,2]
[346940768,1735407043447,-709.07707001,0.00012805,2]
[346940771,1735407043458,-40891.90999994,0.00012805,2]
[346940774,1735407043483,-128580.33404593,0.00012805,2]
[346940776,1735407043493,-3527.2972596,0.00012821,2]
[346940778,1735407043502,-3527.2972596,0.00012836,2]
[346940780,1735407043512,-3527.2972596,0.00012852,2]
[346940782,1735407043521,-3527.2972596,0.00012868,2]
[346940784,1735407043531,-1722.234,0.00012877,2]
[346940786,1735407043540,-170.761,0.00012877,2]
[346940788,1735407043550,-3527.2972596,0.00012884,2]
[346940790,1735407043560,-3527.2972596,0.000129,2]
[346940793,1735407043570,-194.39492214,0.000129,2]
[346940795,1735407043580,-1899.0,0.00012943,2]
[346940796,1735407043590,-923.0,0.00012943,2]
[346940798,1735407043600,-818.0,0.00012943,2]
[346940800,1735407043609,-3772.0,0.00012943,2]
[346940802,1735407043619,-1256.0,0.00012943,2]
[346940804,1735407043628,-536.0,0.00012943,2]
[346940806,1735407043638,-3684.0,0.00012943,2]
[346940808,1735407043647,-1169.883,0.00012943,2]
[346940810,1735407043656,-3889.0,0.00012943,2]
[346940812,1735407043666,-636.0,0.00012943,2]
[346940814,1735407043675,-150.0,0.00012943,2]
[346940816,1735407043684,-2012.0,0.00012943,2]
[346940818,1735407043693,-1265.0,0.00012943,2]
[346940820,1735407043703,-1171.0,0.00012943,2]
[346940822,1735407043712,-500.0,0.00012973,2]
[346940824,1735407043722,-2000.0,0.00012999,2]
[346940826,1735407043731,-266.5098,0.00012999,2]
[346940828,1735407043740,-500.0,0.00012999,2]
[346940830,1735407043750,-108005.41333924,0.00013,2]
[346940843,1735407043869,-16317.0032043,0.00013,2]
[346940886,1735407046134,-368.77,0.0001198,2]
[346940887,1735407046144,-943.729999,0.00012943,2]
[346940888,1735407046156,-4012.43031184,0.00012943,2]
[346940891,1735407046327,-579.8788256,0.00012943,2]
[346940893,1735407046338,-852.80424566,0.00012943,2]
[346940895,1735407046350,-3209.1566179,0.00012943,2]
[346940897,1735407046359,-7825.82231912,0.00013,2]
[346940899,1735407046370,-309671.01020333,0.00013,2]
[346941113,1735407141632,-541.91,0.00016658,30]
[346941114,1735407141661,-1819.28,0.000169,31]
[346941115,1735407141684,-1819.28,0.000169,31]
[346941116,1735407141708,-1819.28,0.000169,31]
[346941117,1735407141730,-1819.28,0.000169,31]
[346941118,1735407141751,-1819.28,0.000169,31]
[346941119,1735407141773,-1819.28,0.000169,31]
[346941120,1735407141794,-1819.28,0.000169,31]
[346941121,1735407141815,-1819.28,0.000169,31]
[346941122,1735407141836,-1819.28,0.000169,31]
[346941123,1735407141858,-1819.28,0.000169,31]
[346941124,1735407141879,-1819.28,0.000169,31]
[346941125,1735407141900,-1819.28,0.000169,31]
[346941126,1735407141926,-1819.28,0.000169,31]
[346941127,1735407141948,-1819.28,0.000169,31]
[346941128,1735407141970,-1819.28,0.000169,31]
[346941129,1735407141992,-1819.28,0.000169,31]
[346941133,1735407303796,7591.0,0.00023,120]
[346941135,1735407325883,500.0,0.00022999,120]
[346941136,1735407326126,500.0,0.00022999,120]
[346941137,1735407326387,325.59,0.00022999,120]
[346941138,1735407365817,135000.0,0.00023,120]
[346941139,1735407513311,305.44593662,0.00022999,120]
[346941140,1735407934235,500.0,0.00022999,120]
[346941141,1735407935694,500.0,0.00022999,120]
[346941142,1735407936489,500.0,0.00022999,120]
[346941143,1735407937402,500.0,0.00022999,120]
[346941144,1735407938339,500.0,0.00022999,120]
[346941145,1735407939496,500.0,0.00022999,120]
[346941146,1735407940301,500.0,0.00022999,120]
[346941147,1735407941685,500.0,0.00022999,120]
[346941148,1735407942532,500.0,0.00022999,120]
[346941149,1735407943191,500.0,0.00022999,120]
[346941150,1735407943841,500.0,0.00022999,120]
[346941151,1735407945509,500.0,0.00022999,120]
[346941152,1735407946661,500.0,0.00022999,120]
[346941153,1735407947247,500.0,0.00022999,120]
[346941154,1735407948053,500.0,0.00022999,120]
[346941155,1735407948498,500.0,0.00022999,120]
[346941156,1735407948965,500.0,0.00022999,120]
[346941157,1735407950889,500.0,0.00022999,120]
[346941158,1735407952258,500.0,0.00022999,120]
[346941159,1735407953178,500.0,0.00022999,120]
[346941160,1735407953779,500.0,0.00022999,120]
[346941175,1735408210028,500.0,0.00022999,120]
[346941176,1735408210378,500.0,0.00022999,120]
[346941177,1735408210717,500.0,0.00022999,120]
[346941178,1735408211079,500.0,0.00022999,120]
[346941179,1735408211439,500.0,0.00022999,120]
[346941180,1735408211693,500.0,0.00022999,120]
[346941181,1735408211959,500.0,0.00022999,120]
[346941182,1735408212273,500.0,0.00022999,120]
[346941183,1735408212537,500.0,0.00022999,120]
[346941184,1735408212839,500.0,0.00022999,120]
[346941185,1735408213151,500.0,0.00022999,120]
[346941186,1735408213756,500.0,0.00022999,120]
[346941187,1735408214021,500.0,0.00022999,120]
[346941188,1735408214311,500.0,0.00022999,120]
[346941189,1735408214818,500.0,0.00022999,120]
[346941190,1735408215042,371.60072067,0.00022999,120]
[346941193,1735408232365,-431.03060248,9.861e-05,2]
[346941194,1735408232479,-376.03939752,9.861e-05,2]
[346941195,1735408232488,-276.14,0.00010137,2]
[346941196,1735408232498,-502.0,0.00010767,2]
[346941197,1735408232507,-163.76,0.00011201,2]
[346941198,1735408232516,-150.0,0.00011609,2]
[346941199,1735408232525,-163.76,0.0001165,2]
[346941200,1735408232535,-375.73381544,0.00011695,2]
[346941201,1735408232551,-1598.54784942,0.00011695,2]
[346941202,1735408232570,-25.71833514,0.00011695,2]
[346941203,1735408232579,-4864.08,0.00011721,2]
[346941204,1735408232588,-1000.0,0.00011855,2]
[346941205,1735408232598,-300.0,0.00011879,2]
[346941206,1735408232607,-787.212,0.0001188,2]
[346941207,1735408232616,-150.0,0.0001189,2]
[346941208,1735408232625,-250.0,0.00011917,2]
[346941209,1735408232635,-564.7,0.00011938,2]
[346941210,1735408232644,-450.0,0.00012,2]
[346941211,1735408232653,-372.14,0.00012,2]
[346941212,1735408232662,-368.2,0.00012,2]
[346941213,1735408232671,-400.08,0.00012084,2]
[346941214,1735408232681,-807.07,0.00012125,2]
[346941215,1735408232690,-344.17,0.0001235,2]
[346941216,1735408232700,-194.34,0.00012478,2]
[346941217,1735408232709,-166.66,0.00012563,2]
[346941218,1735408232718,-3000.0,0.0001287,2]
[346941219,1735408232727,-892.07487017,0.00012873,2]
[346941220,1735408232736,-802.22755028,0.00012873,2]
[346941221,1735408232746,-180.02318565,0.00012873,2]
[346941222,1735408232755,-892.07487015,0.00012876,2]
[346941223,1735408232765,-802.2275502,0.00012876,2]
[346941224,1735408232775,-892.07487015,0.00012879,2]
[346941225,1735408232786,-802.2275502,0.00012879,2]
[346941226,1735408232797,-892.07487015,0.00012882,2]
[346941227,1735408232807,-802.2275502,0.00012882,2]
[346941228,1735408232816,-892.07487015,0.00012885,2]
[346941229,1735408232825,-802.2275502,0.00012885,2]
[346941230,1735408232835,-892.07487015,0.00012888,2]
[346941231,1735408232844,-802.2275502,0.00012888,2]
[346941232,1735408232854,-892.07487015,0.00012891,2]
[346941233,1735408232863,-802.2275502,0.00012891,2]
[346941234,1735408232873,-892.07487015,0.00012894,2]
[346941235,1735408232882,-892.07487015,0.00012897,2]
[346941236,1735408232892,-157.77040212,0.000129,2]
[346941237,1735408232901,-339.76878411,0.000129,2]
[346941238,1735408232911,-255.17446514,0.000129,2]
[346941239,1735408232920,-765.66615912,0.000129,2]
[346941240,1735408232929,-668.14258422,0.000129,2]
[346941241,1735408232939,-892.07487015,0.000129,2]
[346941242,1735408232948,-424.69959678,0.000129,2]
[346941243,1735408232957,-379.0,0.00012943,2]
[346941244,1735408232967,-633.0,0.00012943,2]
[346941245,1735408232976,-150.0,0.00012943,2]
[346941246,1735408232986,-565.0,0.00012943,2]
[346941247,1735408232995,-150.0,0.00012943,2]
[346941248,1735408233005,-153.515,0.00012943,2]
[346941249,1735408233015,-150.0,0.00012943,2]
[346941250,1735408233025,-1377.788,0.00012969,2]
[346941251,1735408233034,-394.83403258,0.00012969,2]
[346941252,1735408233045,-163883.37963715,0.0001297,2]
[346941254,1735408238091,-802.2275502,0.00012894,2]
[346941255,1735408238101,-180.02318564,0.000129,2]
[346941256,1735408238110,-150.0,0.00012943,2]
[346941257,1735408238119,-26923.84890657,0.0001297,2]
[346941258,1735408238150,-1399.1338458,0.0001297,2]
[346941259,1735408238161,-13507.57774289,0.0001297,2]
[346941260,1735408238172,-8695.33159424,0.0001297,2]
[346941261,1735408238183,-27492.01476081,0.0001297,2]
[346941262,1735408238195,-2041.8,0.0001297,2]
[346941263,1735408238207,-2123.30950307,0.0001297,2]
[346941264,1735408238218,-326.45,0.0001297,2]
[346941265,1735408238229,-19436.63914287,0.0001297,2]
[346941266,1735408238240,-557.91029838,0.0001297,2]
[346941267,1735408238251,-1085.0219015,0.0001297,2]
[346941268,1735408238268,-107485.0819691,0.0001297,2]
[346941269,1735408238326,-316.17,0.0001297,2]
[346941270,1735408238337,-3023.38146739,0.0001297,2]
[346941271,1735408238348,-1335.575,0.0001297,2]
[346941272,1735408238361,-736.57390145,0.0001297,2]
[346941273,1735408238372,-618.90086075,0.0001297,2]
[346941274,1735408238383,-400.97885,0.0001297,2]
[346941275,1735408238393,-480.891175,0.0001297,2]
[346941276,1735408238404,-528.69395831,0.0001297,2]
[346941277,1735408238415,-4058.7512773,0.0001297,2]
[346941278,1735408238426,-2825.3799,0.0001297,2]
[346941452,1735408240174,-550.720004,0.0001297,2]
[346941480,1735408240515,-11931.46930936,0.0001297,2]
[346941483,1735408240527,-2454.21736595,0.0001297,2]
[346941485,1735408240538,-1719.25,0.0001297,2]
[346941487,1735408240549,-4603.00000947,0.0001297,2]
[346941489,1735408240560,-407.18349996,0.0001297,2]
[346941492,1735408240574,-683.78934208,0.0001297,2]
[346941494,1735408240586,-328.6195036,0.0001297,2]
[346941496,1735408240596,-3984.62466926,0.0001297,2]
[346941498,1735408240607,-4489.16219891,0.0001297,2]
[346941501,1735408240618,-252.339999,0.0001297,2]
[346941503,1735408240629,-11043.9885974,0.0001297,2]
[346941778,1735408243199,-802.2275502,0.00012897,2]
[346941781,1735408243208,-295.69307064,0.0001297,2]
[346941784,1735408243219,-2313.9666447,0.0001297,2]
[346941787,1735408243230,-973.5406171,0.0001297,2]
[346941790,1735408243240,-1526.4593829,0.0001297,2]
[346941792,1735408243251,-500.0,0.0001297,2]
[346941794,1735408243262,-34792.65019696,0.0001297,2]
[346941796,1735408243273,-149050.45124557,0.0001297,2]
[346941799,1735408243288,-9851.1858904,0.0001297,2]
[346941809,1735408243374,-933.70796023,0.0001297,2]
[346941811,1735408243385,-28373.386504,0.0001297,2]
[346941813,1735408243396,-755.82029978,0.0001297,2]
[346941816,1735408243407,-948.18799716,0.0001297,2]
[346941818,1735408243418,-766.78648518,0.0001297,2]
[346941820,1735408243429,-544.8241221,0.0001297,2]
[346941823,1735408243444,-662.63365475,0.0001297,2]
[346941825,1735408243456,-900.07497384,0.0001297,2]
[346941827,1735408243467,-1087.83172208,0.0001297,2]
[346941829,1735408243478,-33568.59863306,0.0001297,2]
[346941832,1735408243493,-513.3099998,0.0001297,2]
[346941835,1735408243515,-7549.40688354,0.0001297,2]
[346941837,1735408243527,-33782.90317993,0.0001297,2]
[346942089,1735408246183,-39014.999969,0.0001297,2]
[346942096,1735408246242,-1760.00000008,0.0001297,2]
[346942102,1735408246300,-4793.65348667,0.0001297,2]
[346942104,1735408246311,-382.28,0.0001297,2]
[346942106,1735408246320,-500.0,0.00012973,2]
[346942108,1735408246330,-500.0,0.00012973,2]
[346942110,1735408246339,-500.0,0.00012973,2]
[346942112,1735408246348,-2000.0,0.00012999,2]
[346942114,1735408246357,-38.26560735,0.00012999,2]
[346942116,1735408246368,-961.73439265,0.00012999,2]
[346942117,1735408246377,-62.14910063,0.00012999,2]
[346942118,1735408246389,-437.85089937,0.00012999,2]
[346942119,1735408246398,-5933.58910063,0.00013,2]
[346942120,1735408246409,-4352.59630704,0.00013,2]
[346942121,1735408246420,-32091.93168179,0.00013,2]
[346942122,1735408246429,-341883.38857469,0.00013,2]
[346942123,1735408246443,-2891.99427264,0.00013,2]
[346942124,1735408246454,-45733.22765602,0.00013,2]
[346942125,1735408246466,-152342.6365864,0.00013,2]
[346942126,1735408246478,-4917.87640156,0.00013,2]
[346942134,1735408246645,-7372.63242847,0.00013,2]
[346942136,1735408246657,-1144.39744237,0.00013,2]
[346942138,1735408246668,-16584.83640185,0.00013,2]
[346942140,1735408246679,-47679.8392,0.00013,2]
[346942143,1735408246698,-488.88,0.00013,2]
[346942152,1735408279838,188.29898948,0.00022999,120]
[346942153,1735408287619,394.87226349,0.00022999,120]